fUST/lending_fUST_20240723
["ID","MTS","AMOUNT","RATE_DAILY","PERIOD"]
[332951864,1721701856871,-501.29989164,0.00013698,2]
[332951865,1721701856884,-505.70355416,0.00013698,2]
[332951866,1721701856896,-623.20893198,0.00013698,2]
[332951867,1721701856910,-604.43595771,0.00013698,2]
[332951868,1721701856923,-506.40499772,0.00013698,2]
[332951869,1721701856935,-500.0,0.00013698,2]
[332951870,1721701856948,-504.89280054,0.00013698,2]
[332951871,1721701856961,-184.46276487,0.00013698,2]
[332951872,1721701856973,-570.5687356,0.00013698,2]
[332951873,1721701856987,-502.67178212,0.00013698,2]
[332951874,1721701856999,-506.09800508,0.00013698,2]
[332951875,1721701857011,-510.29835996,0.00013698,2]
[332951876,1721701857024,-502.97351102,0.00013698,2]
[332951877,1721701857036,-607.2197029,0.00013698,2]
[332951878,1721701857049,-545.34736984,0.00013698,2]
[332951879,1721701857062,-505.62147421,0.00013698,2]
[332951880,1721701857074,-509.29318363,0.00013698,2]
[332951881,1721701857087,-505.97715732,0.00013698,2]
[332951882,1721701857100,-527.02189811,0.00013698,2]
[332951883,1721701857112,-509.85314093,0.00013698,2]
[332951884,1721701857125,-504.01289275,0.00013698,2]
[332951885,1721701857138,-506.94308432,0.00013698,2]
[332951886,1721701857150,-520.33356268,0.00013698,2]
[332951887,1721701857162,-506.98546014,0.00013698,2]
[332951888,1721701857176,-505.22931962,0.00013698,2]
[332951889,1721701857190,-505.65073543,0.00013698,2]
[332951890,1721701857204,-500.0,0.00013698,2]
[332951891,1721701857217,-509.9748544,0.00013698,2]
[332951892,1721701857230,-507.72225715,0.00013698,2]
[332951893,1721701857243,-180.34338502,0.00013698,2]
[332951894,1721701857257,-504.72208602,0.00013698,2]
[332951895,1721701857270,-235.11585868,0.00013698,2]
[332951896,1721701857282,-189.18193308,0.00013698,2]
[332951897,1721701857292,-518.53151507,0.00013698,2]
[332951898,1721701857561,-503.82040397,0.00013698,2]
[332951899,1721701857592,-504.26450008,0.00013698,2]
[332951900,1721701857607,-504.14983983,0.00013698,2]
[332951901,1721701857617,-504.13428226,0.00013698,2]
[332951902,1721701857627,-500.0,0.00013698,2]
[332951903,1721701857637,-505.89017965,0.00013698,2]
[332951904,1721701857647,-500.0,0.00013698,2]
[332951905,1721701857657,-500.0,0.00013698,2]
[332951906,1721701857667,-503.66030959,0.00013698,2]
[332951907,1721701857676,-500.0,0.00013698,2]
[332951908,1721701857687,-500.0,0.00013698,2]
[332951909,1721701857697,-500.0,0.00013698,2]
[332951910,1721701857706,-500.0,0.00013698,2]
[332951911,1721701857715,-500.0,0.00013698,2]
[332951912,1721701857724,-500.0,0.00013698,2]
[332951913,1721701857733,-500.0,0.00013698,2]
[332951914,1721701857742,-500.0,0.00013698,2]
[332951915,1721701857751,-500.0,0.00013698,2]
[332951916,1721701857760,-500.0,0.00013698,2]
[332951917,1721701857770,-533.48297715,0.00013698,2]
[332951918,1721701857779,-503.86699205,0.00013698,2]
[332951919,1721701857789,-500.0,0.00013698,2]
[332951920,1721701857798,-565.21099815,0.00013698,2]
[332951921,1721701857808,-507.94759994,0.00013698,2]
[332951922,1721701857817,-555.58425933,0.00013698,2]
[332951923,1721701857826,-504.60858004,0.00013698,2]
[332951924,1721701857835,-500.0,0.00013698,2]
[332951925,1721701857844,-503.71001005,0.00013698,2]
[332951926,1721701857853,-511.31405052,0.00013698,2]
[332951927,1721701857863,-500.0,0.00013698,2]
[332951928,1721701857873,-505.78506326,0.00013698,2]
[332951929,1721701857883,-512.74930155,0.00013698,2]
[332951930,1721701857893,-515.19918873,0.00013698,2]
[332951931,1721701857902,-509.1899455,0.00013698,2]
[332951932,1721701857911,-500.0,0.00013698,2]
[332951933,1721701857921,-506.67611316,0.00013698,2]
[332951934,1721701857930,-507.54412526,0.00013698,2]
[332951935,1721701857939,-503.54296882,0.00013698,2]
[332951936,1721701857949,-500.0,0.00013698,2]
[332951937,1721701857958,-500.0,0.00013698,2]
[332951938,1721701857967,-519.87405727,0.00013698,2]
[332951939,1721701857977,-537.64434892,0.00013698,2]
[332951940,1721701857987,-511.0628096,0.00013698,2]
[332951941,1721701857996,-500.0,0.00013698,2]
[332951942,1721701858006,-506.34284849,0.00013698,2]
[332951943,1721701858015,-503.96062029,0.00013698,2]
[332951944,1721701858024,-508.05475961,0.00013698,2]
[332951945,1721701858034,-513.10540951,0.00013698,2]
[332951946,1721701858043,-500.0,0.00013698,2]
[332951947,1721701858052,-500.0,0.00013698,2]
[332951948,1721701858062,-505.20472549,0.00013698,2]
[332951949,1721701858071,-500.911784,0.00013698,2]
[332951950,1721701858082,-500.0,0.00013698,2]
[332951951,1721701858092,-524.65372329,0.00013698,2]
[332951952,1721701858102,-500.0,0.00013698,2]
[332951953,1721701858111,-520.73060274,0.00013698,2]
[332951954,1721701858121,-505.04534101,0.00013698,2]
[332951955,1721701858131,-500.0,0.00013698,2]
[332951956,1721701858140,-504.72624153,0.00013698,2]
[332951957,1721701858150,-511.68156453,0.00013698,2]
[332951958,1721701858159,-500.0,0.00013698,2]
[332951959,1721701858169,-500.0,0.00013698,2]
[332951960,1721701858179,-151.0,0.00013698,2]
[332951961,1721701858188,-151.0,0.00013698,2]
[332951962,1721701858197,-150.41173722,0.00013698,2]
[332951963,1721701858207,-500.0,0.00013698,2]
[332951964,1721701858216,-151.0,0.00013698,2]
[332951965,1721701858226,-151.0,0.00013698,2]
[332951966,1721701858236,-151.0,0.00013698,2]
[332951967,1721701858246,-151.0,0.00013698,2]
[332951968,1721701858255,-151.0,0.00013698,2]
[332951969,1721701858264,-500.0,0.00013698,2]
[332951970,1721701858274,-151.0,0.00013698,2]
[332951971,1721701858284,-151.0,0.00013698,2]
[332951972,1721701858294,-151.0,0.00013698,2]
[332951973,1721701858304,-151.0,0.00013698,2]
[332951974,1721701858314,-151.0,0.00013698,2]
[332951975,1721701858324,-500.0,0.00013698,2]
[332951976,1721701858334,-151.0,0.00013698,2]
[332951977,1721701858345,-151.0,0.00013698,2]
[332951978,1721701858355,-182.440287,0.00013698,2]
[332951979,1721701858365,-506.31131779,0.00013698,2]
[332951980,1721701858375,-500.0,0.00013698,2]
[332951981,1721701858385,-506.25368911,0.00013698,2]
[332951982,1721701858395,-500.0,0.00013698,2]
[332951983,1721701858404,-500.0,0.00013698,2]
[332951984,1721701858414,-510.31618993,0.00013698,2]
[332951985,1721701858424,-5426.32,0.00013698,2]
[332951986,1721701858433,-5426.32,0.00013698,2]
[332951987,1721701858443,-500.0,0.00013698,2]
[332951988,1721701858453,-5426.32,0.00013698,2]
[332951989,1721701858463,-5426.32,0.00013698,2]
[332951990,1721701858473,-5426.32,0.00013698,2]
[332951991,1721701858483,-5426.32,0.00013698,2]
[332951992,1721701858493,-5426.32,0.00013698,2]
[332951993,1721701858503,-5426.32,0.00013698,2]
[332951994,1721701858513,-5426.32,0.00013698,2]
[332951995,1721701858523,-5426.32,0.00013698,2]
[332951996,1721701858533,-5426.32,0.00013698,2]
[332951997,1721701858542,-500.0,0.00013698,2]
[332951998,1721701858553,-5426.32,0.00013698,2]
[332951999,1721701858564,-5426.32,0.00013698,2]
[332952000,1721701858574,-5426.32,0.00013698,2]
[332952001,1721701858583,-5426.32,0.00013698,2]
[332952002,1721701858593,-5426.32,0.00013698,2]
[332952003,1721701858604,-5426.32,0.00013698,2]
[332952004,1721701858622,-5426.32,0.00013698,2]
[332952005,1721701858639,-5426.32,0.00013698,2]
[332952006,1721701858649,-5426.32,0.00013698,2]
[332952007,1721701858660,-5426.32,0.00013698,2]
[332952008,1721701858670,-5426.32,0.00013698,2]
[332952009,1721701858680,-5426.32,0.00013698,2]
[332952010,1721701858689,-5426.37622937,0.00013698,2]
[332952011,1721701858700,-508.7059071,0.00013698,2]
[332952012,1721701858710,-505.68866016,0.00013698,2]
[332952013,1721701858720,-505.46499555,0.00013698,2]
[332952014,1721701858730,-500.0,0.00013698,2]
[332952015,1721701858740,-505.32232572,0.00013698,2]
[332952016,1721701858750,-513.29732318,0.00013698,2]
[332952017,1721701858759,-500.0,0.00013698,2]
[332952018,1721701858769,-500.0,0.00013698,2]
[332952019,1721701858779,-561.17677099,0.00013698,2]
[332952020,1721701858788,-504.63563389,0.00013698,2]
[332952021,1721701858799,-520.1459324,0.00013698,2]
[332952022,1721701858809,-504.92923981,0.00013698,2]
[332952023,1721701858819,-608.69944885,0.00013698,2]
[332952024,1721701858829,-500.0,0.00013698,2]
[332952025,1721701858839,-476.18599757,0.00013698,2]
[332952026,1721701858849,-8804.79,0.00013698,2]
[332952027,1721701858860,-8804.79,0.00013698,2]
[332952028,1721701858869,-8804.79,0.00013698,2]
[332952029,1721701858879,-151.229884,0.00013698,2]
[332952030,1721701858890,-8804.79,0.00013698,2]
[332952031,1721701858899,-8804.79,0.00013698,2]
[332952032,1721701858909,-8804.79,0.00013698,2]
[332952033,1721701858919,-8804.79,0.00013698,2]
[332952034,1721701858929,-8804.79,0.00013698,2]
[332952035,1721701858939,-8804.79,0.00013698,2]
[332952036,1721701858950,-8804.79,0.00013698,2]
[332952037,1721701858960,-8804.79,0.00013698,2]
[332952038,1721701858970,-8804.79,0.00013698,2]
[332952039,1721701858980,-500.0,0.00013698,2]
[332952040,1721701858990,-287.847185,0.00013698,2]
[332952041,1721701859000,-500.0,0.00013698,2]
[332952042,1721701859011,-500.0,0.00013698,2]
[332952043,1721701859021,-500.0,0.00013698,2]
[332952044,1721701859031,-500.0,0.00013698,2]
[332952045,1721701859040,-558.39035498,0.00013698,2]
[332952046,1721701859050,-500.0,0.00013698,2]
[332952047,1721701859060,-505.47269229,0.00013698,2]
[332952048,1721701859074,-500.0,0.00013698,2]
[332952049,1721701859083,-502.72637419,0.00013698,2]
[332952050,1721701859093,-510.78308671,0.00013698,2]
[332952051,1721701859103,-500.0,0.00013698,2]
[332952052,1721701859113,-584.18758341,0.00013698,2]
[332952053,1721701859123,-544.11618746,0.00013698,2]
[332952054,1721701859133,-500.0,0.00013698,2]
[332952055,1721701859143,-501.50688501,0.00013698,2]
[332952056,1721701859155,-500.0,0.00013698,2]
[332952057,1721701859164,-554.68407061,0.00013698,2]
[332952058,1721701859174,-503.47043615,0.00013698,2]
[332952059,1721701859183,-152.000945,0.00013698,2]
[332952060,1721701859193,-500.0,0.00013698,2]
[332952061,1721701859203,-500.0,0.00013698,2]
[332952062,1721701859212,-500.0,0.00013698,2]
[332952063,1721701859222,-504.3628941,0.00013698,2]
[332952064,1721701859234,-500.0,0.00013698,2]
[332952065,1721701859244,-500.0,0.00013698,2]
[332952066,1721701859254,-500.0,0.00013698,2]
[332952067,1721701859264,-502.08412915,0.00013698,2]
[332952068,1721701859274,-1088.66,0.00013698,2]
[332952069,1721701859284,-1088.66,0.00013698,2]
[332952070,1721701859294,-1088.66,0.00013698,2]
[332952071,1721701859304,-1088.66,0.00013698,2]
[332952072,1721701859313,-1088.66,0.00013698,2]
[332952073,1721701859323,-1088.66,0.00013698,2]
[332952074,1721701859333,-1088.66,0.00013698,2]
[332952075,1721701859344,-1088.66,0.00013698,2]
[332952076,1721701859354,-500.0,0.00013698,2]
[332952077,1721701859364,-1088.66,0.00013698,2]
[332952078,1721701859374,-1088.66,0.00013698,2]
[332952079,1721701859383,-1088.66,0.00013698,2]
[332952080,1721701859392,-1088.66,0.00013698,2]
[332952081,1721701859403,-1088.66,0.00013698,2]
[332952082,1721701859413,-1088.66,0.00013698,2]
[332952083,1721701859423,-1088.66,0.00013698,2]
[332952084,1721701859432,-1088.66,0.00013698,2]
[332952085,1721701859442,-507.14509585,0.00013698,2]
[332952086,1721701859452,-507.1893084,0.00013698,2]
[332952087,1721701859462,-500.0,0.00013698,2]
[332952088,1721701859472,-500.0,0.00013698,2]
[332952089,1721701859482,-500.0,0.00013698,2]
[332952090,1721701859492,-501.23887447,0.00013698,2]
[332952091,1721701859502,-500.0,0.00013698,2]
[332952092,1721701859512,-500.0,0.00013698,2]
[332952093,1721701859522,-309.35449025,0.00013698,2]
[332952094,1721701859532,-505.86208849,0.00013698,2]
[332952095,1721701859542,-500.0,0.00013698,2]
[332952096,1721701859552,-500.0,0.00013698,2]
[332952097,1721701859562,-506.0624105,0.00013698,2]
[332952098,1721701859572,-500.0,0.00013698,2]
[332952099,1721701859583,-500.0,0.00013698,2]
[332952100,1721701859593,-500.0,0.00013698,2]
[332952101,1721701859603,-504.61037508,0.00013698,2]
[332952102,1721701859618,-500.0,0.00013698,2]
[332952103,1721701859628,-500.0,0.00013698,2]
[332952104,1721701859639,-505.60137318,0.00013698,2]
[332952105,1721701859650,-500.0,0.00013698,2]
[332952106,1721701859660,-500.0,0.00013698,2]
[332952107,1721701859669,-516.43538731,0.00013698,2]
[332952108,1721701859679,-612.00415226,0.00013698,2]
[332952109,1721701859690,-504.06533851,0.00013698,2]
[332952110,1721701859700,-500.0,0.00013698,2]
[332952111,1721701859710,-500.0,0.00013698,2]
[332952112,1721701859719,-500.0,0.00013698,2]
[332952113,1721701859729,-500.0,0.00013698,2]
[332952114,1721701859738,-503.53144667,0.00013698,2]
[332952115,1721701859748,-500.0,0.00013698,2]
[332952116,1721701859758,-500.0,0.00013698,2]
[332952117,1721701859771,-468.81831543,0.00013698,2]
[332952118,1721701859780,-502.50264103,0.00013698,2]
[332952119,1721701859790,-501.52926567,0.00013698,2]
[332952120,1721701859800,-500.0,0.00013698,2]
[332952121,1721701859809,-500.0,0.00013698,2]
[332952122,1721701859819,-500.0,0.00013698,2]
[332952123,1721701859829,-505.46039264,0.00013698,2]
[332952124,1721701859839,-502.93968594,0.00013698,2]
[332952125,1721701859849,-500.0,0.00013698,2]
[332952126,1721701859859,-500.0,0.00013698,2]
[332952127,1721701859869,-489.80891818,0.00013698,2]
[332952128,1721701859879,-500.0,0.00013698,2]
[332952129,1721701859890,-500.0,0.00013698,2]
[332952130,1721701859899,-500.0,0.00013698,2]
[332952131,1721701859909,-500.0,0.00013698,2]
[332952132,1721701859919,-502.38679695,0.00013698,2]
[332952133,1721701859929,-500.0,0.00013698,2]
[332952134,1721701859939,-500.0,0.00013698,2]
[332952135,1721701859948,-500.0,0.00013698,2]
[332952136,1721701859958,-500.0,0.00013698,2]
[332952137,1721701859968,-506.40957937,0.00013698,2]
[332952138,1721701859978,-500.0,0.00013698,2]
[332952139,1721701859988,-514.21073984,0.00013698,2]
[332952140,1721701859998,-500.0,0.00013698,2]
[332952141,1721701860009,-500.0,0.00013698,2]
[332952142,1721701860018,-505.76456325,0.00013698,2]
[332952143,1721701860028,-501.93369291,0.00013698,2]
[332952144,1721701860039,-500.0,0.00013698,2]
[332952145,1721701860050,-500.0,0.00013698,2]
[332952146,1721701860060,-502.01762639,0.00013698,2]
[332952147,1721701860069,-502.19092897,0.00013698,2]
[332952148,1721701860079,-500.0,0.00013698,2]
[332952149,1721701860089,-496.10865682,0.00013698,2]
[332952150,1721701860099,-500.0,0.00013698,2]
[332952151,1721701860109,-500.0,0.00013698,2]
[332952152,1721701860119,-503.11266962,0.00013698,2]
[332952153,1721701860130,-500.0,0.00013698,2]
[332952154,1721701860139,-500.0,0.00013698,2]
[332952155,1721701860149,-500.0,0.00013698,2]
[332952156,1721701860159,-500.0,0.00013698,2]
[332952157,1721701860169,-323.18,0.00013698,2]
[332952158,1721701860179,-552.80303321,0.00013698,2]
[332952159,1721701860190,-501.92044497,0.00013698,2]
[332952160,1721701860200,-500.0,0.00013698,2]
[332952161,1721701860210,-501.15311534,0.00013698,2]
[332952162,1721701860219,-503.46923642,0.00013698,2]
[332952163,1721701860229,-500.0,0.00013698,2]
[332952164,1721701860239,-500.0,0.00013698,2]
[332952165,1721701860250,-500.0,0.00013698,2]
[332952166,1721701860259,-500.0,0.00013698,2]
[332952167,1721701860269,-500.0,0.00013698,2]
[332952168,1721701860279,-500.0,0.00013698,2]
[332952169,1721701860289,-594.5,0.00013698,2]
[332952170,1721701860298,-500.0,0.00013698,2]
[332952171,1721701860308,-500.0,0.00013698,2]
[332952172,1721701860318,-500.0,0.00013698,2]
[332952173,1721701860328,-500.0,0.00013698,2]
[332952174,1721701860338,-503.04334662,0.00013698,2]
[332952175,1721701860348,-510.73400675,0.00013698,2]
[332952176,1721701860357,-500.0,0.00013698,2]
[332952177,1721701860367,-500.0,0.00013698,2]
[332952178,1721701860377,-500.0,0.00013698,2]
[332952179,1721701860388,-500.0,0.00013698,2]
[332952180,1721701860399,-500.0,0.00013698,2]
[332952181,1721701860408,-500.0,0.00013698,2]
[332952182,1721701860418,-500.0,0.00013698,2]
[332952183,1721701860428,-500.0,0.00013698,2]
[332952184,1721701860438,-500.0,0.00013698,2]
[332952185,1721701860448,-502.98777493,0.00013698,2]
[332952186,1721701860458,-500.0,0.00013698,2]
[332952187,1721701860468,-503.83229472,0.00013698,2]
[332952188,1721701860479,-505.50876844,0.00013698,2]
[332952189,1721701860488,-644.88,0.00013698,2]
[332952190,1721701860499,-500.0,0.00013698,2]
[332952191,1721701860509,-500.0,0.00013698,2]
[332952192,1721701860519,-500.0,0.00013698,2]
[332952193,1721701860529,-519.61670469,0.00013698,2]
[332952194,1721701860540,-500.0,0.00013698,2]
[332952195,1721701860551,-501.8007012,0.00013698,2]
[332952196,1721701860561,-500.0,0.00013698,2]
[332952197,1721701860571,-500.0,0.00013698,2]
[332952198,1721701860581,-500.0,0.00013698,2]
[332952199,1721701860591,-500.0,0.00013698,2]
[332952200,1721701860601,-505.5754224,0.00013698,2]
[332952201,1721701860618,-500.0,0.00013698,2]
[332952202,1721701860628,-500.0,0.00013698,2]
[332952203,1721701860639,-515.09092223,0.00013698,2]
[332952204,1721701860650,-500.0,0.00013698,2]
[332952205,1721701860660,-500.0,0.00013698,2]
[332952206,1721701860671,-504.57936412,0.00013698,2]
[332952207,1721701860682,-502.63652618,0.00013698,2]
[332952208,1721701860697,-584.41285074,0.00013698,2]
[332952209,1721701860707,-504.59390204,0.00013698,2]
[332952210,1721701860717,-500.0,0.00013698,2]
[332952211,1721701860890,-500.0,0.00013698,2]
[332952212,1721701860900,-503.87897062,0.00013698,2]
[332952213,1721701860911,-599.05,0.00013698,2]
[332952214,1721701860921,-523.53,0.00013698,2]
[332952215,1721701860931,-500.0,0.00013698,2]
[332952216,1721701860942,-500.0,0.00013698,2]
[332952217,1721701860952,-518.86740857,0.00013698,2]
[332952218,1721701860962,-502.91594396,0.00013698,2]
[332952219,1721701860974,-500.0,0.00013698,2]
[332952220,1721701860985,-500.0,0.00013698,2]
[332952221,1721701860995,-500.0,0.00013698,2]
[332952222,1721701861006,-500.0,0.00013698,2]
[332952223,1721701861017,-500.0,0.00013698,2]
[332952224,1721701861027,-503.03326359,0.00013698,2]
[332952225,1721701861037,-500.0,0.00013698,2]
[332952226,1721701861047,-500.0,0.00013698,2]
[332952227,1721701861057,-503.04300014,0.00013698,2]
[332952228,1721701861066,-500.0,0.00013698,2]
[332952229,1721701861077,-500.0,0.00013698,2]
[332952230,1721701861087,-500.0,0.00013698,2]
[332952231,1721701861097,-503.36314639,0.00013698,2]
[332952232,1721701861107,-500.0,0.00013698,2]
[332952233,1721701861117,-500.0,0.00013698,2]
[332952234,1721701861127,-500.0,0.00013698,2]
[332952235,1721701861139,-151.307164,0.00013698,2]
[332952236,1721701861151,-500.0,0.00013698,2]
[332952237,1721701861161,-649.14857798,0.00013698,2]
[332952238,1721701861170,-500.0,0.00013698,2]
[332952239,1721701861179,-500.0,0.00013698,2]
[332952240,1721701861189,-503.52287036,0.00013698,2]
[332952241,1721701861200,-640.11192477,0.00013698,2]
[332952242,1721701861210,-500.0,0.00013698,2]
[332952243,1721701861220,-502.02568385,0.00013698,2]
[332952244,1721701861230,-318.26580189,0.00013698,2]
[332952245,1721701861241,-500.0,0.00013698,2]
[332952246,1721701861251,-548.99,0.00013698,2]
[332952247,1721701861262,-500.0,0.00013698,2]
[332952248,1721701861272,-574.41854507,0.00013698,2]
[332952249,1721701861282,-503.07600117,0.00013698,2]
[332952250,1721701861292,-151.239924,0.00013698,2]
[332952251,1721701861302,-500.0,0.00013698,2]
[332952252,1721701861313,-500.0,0.00013698,2]
[332952253,1721701861323,-500.0,0.00013698,2]
[332952254,1721701861333,-500.0,0.00013698,2]
[332952255,1721701861343,-500.0,0.00013698,2]
[332952256,1721701861354,-506.29213586,0.00013698,2]
[332952257,1721701861365,-500.0,0.00013698,2]
[332952258,1721701861375,-500.0,0.00013698,2]
[332952259,1721701861386,-500.0,0.00013698,2]
[332952260,1721701861396,-500.0,0.00013698,2]
[332952261,1721701861405,-500.0,0.00013698,2]
[332952262,1721701861416,-500.0,0.00013698,2]
[332952263,1721701861426,-500.0,0.00013698,2]
[332952264,1721701861436,-505.20823603,0.00013698,2]
[332952265,1721701861446,-500.0,0.00013698,2]
[332952266,1721701861457,-501.97594323,0.00013698,2]
[332952267,1721701861467,-506.10074766,0.00013698,2]
[332952268,1721701861477,-503.11935118,0.00013698,2]
[332952269,1721701861488,-503.40505456,0.00013698,2]
[332952270,1721701861498,-504.07024848,0.00013698,2]
[332952271,1721701861508,-527.09223168,0.00013698,2]
[332952272,1721701861517,-500.0,0.00013698,2]
[332952273,1721701861527,-500.0,0.00013698,2]
[332952274,1721701861537,-503.23968911,0.00013698,2]
[332952275,1721701861547,-500.0,0.00013698,2]
[332952276,1721701861557,-503.42896,0.00013698,2]
[332952277,1721701861568,-500.0,0.00013698,2]
[332952278,1721701861578,-500.0,0.00013698,2]
[332952279,1721701861588,-500.0,0.00013698,2]
[332952280,1721701861598,-500.0,0.00013698,2]
[332952281,1721701861610,-546.87,0.00013698,2]
[332952282,1721701861622,-500.0,0.00013698,2]
[332952283,1721701861636,-616.91,0.00013698,2]
[332952284,1721701861651,-500.0,0.00013698,2]
[332952285,1721701861661,-500.0,0.00013698,2]
[332952286,1721701861672,-500.0,0.00013698,2]
[332952287,1721701861682,-500.0,0.00013698,2]
[332952288,1721701861694,-500.0,0.00013698,2]
[332952289,1721701861704,-500.0,0.00013698,2]
[332952290,1721701861714,-500.0,0.00013698,2]
[332952291,1721701861725,-529.93265819,0.00013698,2]
[332952292,1721701861735,-500.0,0.00013698,2]
[332952293,1721701861745,-500.0,0.00013698,2]
[332952294,1721701861755,-500.0,0.00013698,2]
[332952295,1721701861765,-500.0,0.00013698,2]
[332952296,1721701861775,-2000.0,0.00013698,2]
[332952297,1721701861786,-502.82485882,0.00013698,2]
[332952298,1721701861796,-500.0,0.00013698,2]
[332952299,1721701861807,-624.71,0.00013698,2]
[332952300,1721701861817,-500.0,0.00013698,2]
[332952301,1721701861827,-500.0,0.00013698,2]
[332952302,1721701861837,-502.72710149,0.00013698,2]
[332952303,1721701861847,-572.16,0.00013698,2]
[332952304,1721701861858,-500.0,0.00013698,2]
[332952305,1721701861868,-500.0,0.00013698,2]
[332952306,1721701861878,-500.0,0.00013698,2]
[332952307,1721701861894,-500.0,0.00013698,2]
[332952308,1721701861904,-500.0,0.00013698,2]
[332952309,1721701861915,-500.0,0.00013698,2]
[332952310,1721701861926,-500.0,0.00013698,2]
[332952311,1721701861936,-500.0,0.00013698,2]
[332952312,1721701861946,-500.0,0.00013698,2]
[332952313,1721701861956,-500.0,0.00013698,2]
[332952314,1721701861966,-508.07462244,0.00013698,2]
[332952315,1721701861976,-500.0,0.00013698,2]
[332952316,1721701861987,-503.29142671,0.00013698,2]
[332952317,1721701861997,-500.0,0.00013698,2]
[332952318,1721701862007,-500.0,0.00013698,2]
[332952319,1721701862018,-500.0,0.00013698,2]
[332952320,1721701862028,-502.33735354,0.00013698,2]
[332952321,1721701862038,-500.0,0.00013698,2]
[332952322,1721701862048,-500.0,0.00013698,2]
[332952323,1721701862057,-505.11920848,0.00013698,2]
[332952324,1721701862067,-509.67259838,0.00013698,2]
[332952325,1721701862076,-503.55358641,0.00013698,2]
[332952326,1721701862086,-503.45793881,0.00013698,2]
[332952327,1721701862096,-501.65098041,0.00013698,2]
[332952328,1721701862106,-500.0,0.00013698,2]
[332952329,1721701862116,-502.61980572,0.00013698,2]
[332952330,1721701862126,-500.0,0.00013698,2]
[332952331,1721701862142,-502.24288698,0.00013698,2]
[332952332,1721701862152,-500.0,0.00013698,2]
[332952333,1721701862162,-500.0,0.00013698,2]
[332952334,1721701862173,-500.0,0.00013698,2]
[332952335,1721701862183,-500.0,0.00013698,2]
[332952336,1721701862192,-554.52,0.00013698,2]
[332952337,1721701862202,-500.0,0.00013698,2]
[332952338,1721701862212,-500.0,0.00013698,2]
[332952339,1721701862222,-263.37599785,0.00013698,2]
[332952340,1721701862232,-500.0,0.00013698,2]
[332952341,1721701862243,-151.0,0.00013698,2]
[332952342,1721701862253,-151.0,0.00013698,2]
[332952343,1721701862263,-500.0,0.00013698,2]
[332952344,1721701862273,-151.0,0.00013698,2]
[332952345,1721701862284,-151.0,0.00013698,2]
[332952346,1721701862295,-500.0,0.00013698,2]
[332952347,1721701862305,-151.0,0.00013698,2]
[332952348,1721701862316,-500.0,0.00013698,2]
[332952349,1721701862327,-500.0,0.00013698,2]
[332952350,1721701862337,-503.55022564,0.00013698,2]
[332952351,1721701862348,-502.36345931,0.00013698,2]
[332952352,1721701862357,-151.0,0.00013698,2]
[332952353,1721701862367,-151.0,0.00013698,2]
[332952354,1721701862378,-151.0,0.00013698,2]
[332952355,1721701862393,-477.71357621,0.00013698,2]
[332952356,1721701862402,-504.31947943,0.00013698,2]
[332952357,1721701862412,-501.60168068,0.00013698,2]
[332952358,1721701862423,-151.0,0.00013698,2]
[332952359,1721701862434,-151.757462,0.00013698,2]
[332952360,1721701862444,-500.0,0.00013698,2]
[332952361,1721701862455,-500.0,0.00013698,2]
[332952362,1721701862465,-503.3228109,0.00013698,2]
[332952363,1721701862475,-500.0,0.00013698,2]